bitfinex-derivatives/quotes_SOLF0:USTF0_20240829
["timestamp","ask_amount","ask_price","bid_price","bid_amount"]
[1724896134509,14.25237119,143.25,143.22,3.54239344]
[1724896134909,10.76277119,143.25,143.22,3.54239344]
[1724896135107,0.05277119,143.25,143.23,3.49]
[1724896139204,0.05277119,143.25,143.22,3.54239344]
[1724896139408,0.05277119,143.25,143.22,0.05229344]
[1724896140108,0.05277119,143.25,143.23,3.4899]
[1724896141311,0.05277119,143.25,143.24,3.4897]
[1724896141607,14.1989,143.28,143.23,1.3004]
[1724896142004,339.0,143.32,143.23,1.3004]
[1724896142207,10.71,143.33,143.26,10.71]
[1724896142405,0.04537017,143.31,143.28,3.53510087]
[1724896143103,339.0,143.38,143.3,10.71]
[1724896143401,10.71,143.37,143.3,10.71]
[1724896144205,0.04701538,143.35,143.32,3.53265728]
[1724896144907,14.24401538,143.35,143.32,3.53265728]
[1724896145110,14.24401538,143.35,143.32,0.04505728]
[1724896148207,10.75701538,143.35,143.32,0.04505728]
[1724896148407,0.04701538,143.35,143.32,0.04505728]
[1724896149911,10.75701538,143.35,143.32,0.04505728]
[1724896150907,10.71,143.34,143.32,0.04505728]
[1724896151614,3.4875,143.33,143.32,0.04505728]
[1724896154420,3.4885,143.29,143.27,2.6291]
[1724896154619,14.1985,143.29,143.27,2.6291]
[1724896155318,14.24758014,143.29,143.27,2.67594427]
[1724896155511,14.24758014,143.29,143.27,6.16494427]
[1724896155716,3.53758014,143.29,143.27,6.16494427]
[1724896156316,0.04908014,143.29,143.27,6.16494427]
[1724896167730,3.53758014,143.29,143.27,6.16494427]
[1724896171826,0.04908014,143.29,143.28,3.4887]
[1724896172027,0.04908014,143.29,143.27,2.67594427]
[1724896173032,4.62,143.35,143.27,13.3391]
[1724896173340,3.4878,143.32,143.29,3.4883]
[1724896173536,3.4878,143.32,143.27,13.3391]
[1724896173738,10.71,143.34,143.27,13.3391]
[1724896173928,0.0496316,143.32,143.29,0.0441618]
[1724896175336,0.0496316,143.32,143.3,3.4881]
[1724896178053,0.0496316,143.32,143.29,0.0441618]
[1724896178654,0.0496316,143.32,143.31,3.488]
[1724896178851,339.0,143.38,143.3,10.71]
[1724896179154,10.71,143.37,143.3,10.71]
[1724896179370,3.487,143.36,143.3,10.71]
[1724896179748,3.487,143.36,143.3,15.33]
[1724896179943,0.03586492,143.34,143.32,3.5342788]
[1724896182158,0.03586492,143.34,143.33,3.4875]
[1724896183151,42.84,143.48,143.33,3.4875]
[1724896183152,10.71,143.38,143.35,3.4869]
[1724896183356,10.71,143.38,143.33,11.9891]
[1724896184255,10.71,143.38,143.34,0.04466541]
[1724896184448,14.1964,143.38,143.34,3.53186541]
[1724896185953,3.4866,143.37,143.34,0.04466541]
[1724896186961,3.4866,143.37,143.34,3.53186541]
[1724896188061,10.71,143.38,143.34,3.53186541]
[1724896188062,14.1964,143.38,143.34,3.53186541]
[1724896188454,3.4864,143.38,143.34,3.53186541]
[1724896189659,14.1964,143.38,143.34,3.53186541]
[1724896190059,3.4866,143.37,143.34,3.53186541]
[1724896191461,14.1964,143.38,143.34,3.53186541]
[1724896191961,8.05322674,143.4,143.34,0.04466541]
[1724896191962,3.4862,143.39,143.34,0.04466541]
[1724896192361,10.71,143.41,143.36,3.4867]
[1724896192662,3.486,143.4,143.37,0.04464765]
[1724896192960,10.71,143.39,143.37,0.04464765]
[1724896194463,3.4863,143.38,143.37,0.04464765]
[1724896199564,3.4861,143.39,143.37,0.04464765]
[1724896202260,3.4863,143.38,143.37,0.04464765]
[1724896202858,3.4863,143.39,143.37,0.04464765]
[1724896203066,10.71,143.4,143.37,0.04464765]
[1724896203256,10.71,143.39,143.37,0.04464765]
[1724896203460,14.1963,143.38,143.37,0.04464765]
[1724896203971,10.71,143.38,143.32,3.4877]
[1724896204268,10.71,143.35,143.32,3.4877]
[1724896204862,14.1972,143.35,143.32,3.4877]
[1724896205062,14.24184765,143.35,143.32,3.54079815]
[1724896206779,3.53184765,143.35,143.32,3.54079815]
[1724896207066,0.04464765,143.35,143.32,10.76309815]
[1724896207267,0.04464765,143.35,143.32,12.06169815]
[1724896207468,0.04464765,143.35,143.34,3.4873]
[1724896222188,0.04464765,143.35,143.33,3.4875]
[1724896222779,3.53174765,143.35,143.32,4.83939815]
[1724896222985,10.71,143.34,143.32,0.05309815]
[1724896223181,10.71,143.33,143.32,0.05309815]
[1724896224275,14.1975,143.33,143.32,0.05309815]
[1724896224788,3.4875,143.33,143.32,0.05309815]
[1724896224975,10.75464765,143.35,143.32,0.05309815]
[1724896224976,3.4873,143.34,143.32,0.05309815]
[1724896226481,3.4875,143.33,143.32,0.05309815]
[1724896227585,3.4874,143.34,143.32,0.05309815]
[1724896234488,0.04464765,143.35,143.34,3.4873]
[1724896245399,0.04464765,143.35,143.34,14.1973]
[1724896247998,0.04464765,143.35,143.32,4.85609815]
[1724896248301,0.04464765,143.35,143.32,12.07839815]
[1724896249297,0.04464765,143.35,143.34,3.4873]
[1724896249697,0.04464765,143.35,143.34,14.1973]
[1724896255298,0.04464765,143.35,143.34,10.71]
[1724896255499,0.04464765,143.35,143.32,0.05309815]
[1724896256504,3.4873,143.34,143.32,0.05309815]
[1724896257502,3.4875,143.33,143.32,0.05309815]
[1724896260900,0.04464765,143.35,143.32,0.05309815]
[1724896261302,3.53174765,143.35,143.32,3.54069815]
[1724896264705,0.04464765,143.35,143.33,14.1975]
[1724896267720,3.53174765,143.35,143.33,10.71]
[1724896267911,0.04464765,143.35,143.33,10.71]
[1724896268310,0.04464765,143.35,143.32,3.54069815]
[1724896269412,3.53174765,143.35,143.32,3.54069815]
[1724896269810,0.04464765,143.35,143.33,14.1975]
[1724896274816,0.04464765,143.35,143.34,14.1973]
[1724896278526,339.0,143.43,143.34,10.71]
[1724896278718,339.0,143.43,143.33,1.2956]
[1724896278719,15.29,143.43,143.37,10.71]
[1724896278921,343.58,143.44,143.38,14.1962]
[1724896279214,346.98252828,143.44,143.38,14.1962]
[1724896279415,3.4845,143.46,143.42,10.71]
[1724896279617,27.9,143.48,143.42,10.71]
[1724896279618,4.58,143.48,143.42,10.71]
[1724896279826,4.58,143.48,143.44,0.04974213]
[1724896280014,3.4846,143.45,143.44,0.04974213]
[1724896280326,4.58,143.48,143.44,0.04974213]
[1724896280518,3.4846,143.46,143.44,0.04974213]
[1724896282620,3.425621,143.46,143.44,0.04974213]
[1724896282815,10.71,143.46,143.44,0.04974213]
[1724896283019,10.71,143.45,143.44,0.04974213]
[1724896283225,10.71,143.45,143.38,8.0662]
[1724896283525,10.71,143.42,143.38,3.4862]
[1724896283721,10.71,143.41,143.34,10.71]
[1724896283919,10.71,143.41,143.34,15.29]
[1724896284120,10.71,143.38,143.36,0.04746841]
[1724896284416,3.4867,143.37,143.36,0.04746841]
[1724896285315,3.4863,143.38,143.36,0.04746841]
[1724896286514,3.4866,143.37,143.36,0.04746841]
[1724896286717,26.83974213,143.39,143.36,0.04746841]
[1724896287224,3.4865,143.38,143.36,0.04746841]
[1724896287628,26.83974213,143.39,143.36,0.04746841]
[1724896288133,3.4866,143.37,143.36,0.04746841]
[1724896292529,0.04974213,143.39,143.36,0.04746841]
[1724896292530,3.4864,143.38,143.36,0.04746841]
[1724896295737,3.53594213,143.39,143.36,3.53416841]
[1724896299631,0.04974213,143.39,143.36,0.04746841]
[1724896300538,0.04974213,143.39,143.37,3.4866]
[1724896300737,3.4866,143.37,143.36,0.04746841]
[1724896300934,30.2766,143.37,143.36,0.04746841]
[1724896304245,3.4876,143.33,143.27,3.882]
[1724896304449,365.79,143.37,143.28,4.58]
[1724896304849,3.4874,143.34,143.31,3.4879]
[1724896305342,3.53724846,143.34,143.32,3.4878]
[1724896305540,0.04984846,143.34,143.32,3.4878]
[1724896306147,3.53714846,143.34,143.32,3.4878]
[1724896307051,0.04984846,143.34,143.32,3.4878]
[1724896308052,0.04984846,143.34,143.33,3.4875]
[1724896314247,26.79,143.4,143.35,3.487]
[1724896314548,4.58,143.42,143.35,3.487]
[1724896314751,8.08599407,143.42,143.35,3.487]
[1724896314948,3.4864,143.38,143.35,3.487]
[1724896315351,3.53191077,143.38,143.35,3.53225677]
[1724896316653,0.04551077,143.38,143.36,3.4868]
[1724896318847,0.04551077,143.38,143.35,3.53215677]
[1724896318848,3.53181077,143.38,143.35,3.53215677]
[1724896319058,3.53181077,143.38,143.35,0.04525677]
[1724896319059,26.83551077,143.38,143.35,0.04525677]
[1724896319751,3.4867,143.37,143.35,0.04525677]
[1724896323455,3.4868,143.36,143.35,0.04525677]
[1724896324574,3.4866,143.37,143.35,0.04525677]
[1724896326064,0.04551077,143.38,143.35,0.04525677]
[1724896326766,3.4868,143.36,143.35,0.04525677]
[1724896327172,0.04551077,143.38,143.35,0.04525677]
[1724896327971,3.4866,143.37,143.35,0.04525677]
[1724896330376,3.4868,143.36,143.35,0.04525677]
[1724896332668,3.4866,143.37,143.35,0.04525677]
[1724896332868,0.04551077,143.38,143.35,0.04525677]
[1724896333473,0.04551077,143.38,143.36,3.4867]
[1724896333671,0.04551077,143.38,143.35,10.76525677]
[1724896333884,0.04551077,143.38,143.37,10.72]
[1724896334176,342.4857,143.41,143.38,3.4862]
[1724896335268,342.4857,143.41,143.38,3.53572306]
[1724896335874,339.0,143.41,143.38,3.53572306]
[1724896337378,339.0,143.41,143.39,3.486]
[1724896338679,3.4852,143.43,143.39,3.486]
[1724896339179,3.4852,143.43,143.4,3.4858]
[1724896339584,10.72,143.44,143.4,3.4858]
[1724896339882,10.72,143.46,143.4,10.72]
[1724896340078,10.72,143.46,143.42,0.04614257]
[1724896340377,10.72,143.46,143.43,3.485]
[1724896340378,3.4845,143.46,143.43,3.485]
[1724896340597,354.3,143.49,143.42,10.76614257]
[1724896340883,3.4841,143.48,143.44,3.4847]
[1724896341179,3.4841,143.48,143.45,0.04498153]
[1724896341781,3.4841,143.48,143.45,3.52958153]
[1724896343995,339.0,143.49,143.45,0.04498153]
[1724896344282,10.72,143.51,143.45,0.04498153]
[1724896344683,3.4836,143.5,143.46,3.4843]
[1724896344883,14.2036,143.5,143.46,3.4843]
[1724896345581,3.4837,143.49,143.45,0.04498153]
[1724896345782,10.72,143.5,143.45,0.04498153]
[1724896345979,10.72,143.48,143.45,0.04498153]
[1724896346182,3.4844,143.46,143.45,0.04498153]
[1724896346587,10.72,143.47,143.45,0.04498153]
[1724896346787,14.2043,143.47,143.45,0.04498153]
[1724896347692,3.4843,143.47,143.45,0.04498153]
[1724896348182,3.4844,143.46,143.45,0.04498153]
[1724896350090,14.2041,143.48,143.45,0.04498153]
[1724896350984,3.4842,143.47,143.45,0.04498153]
[1724896352290,10.72,143.48,143.45,0.04498153]
[1724896352486,14.204,143.48,143.45,3.52958153]
[1724896355181,3.4841,143.47,143.45,0.04498153]
[1724896355483,14.20145887,143.46,143.45,0.04498153]
[1724896355691,10.72,143.46,143.45,0.04498153]
[1724896355993,10.72,143.48,143.45,0.04498153]
[1724896356986,339.6526,143.52,143.45,0.04498153]
[1724896357188,10.72,143.5,143.45,0.04498153]
[1724896357390,14.2043,143.47,143.45,0.04498153]
[1724896357597,14.1512807,143.46,143.45,0.04498153]
[1724896357891,14.2044,143.46,143.45,0.04498153]
[1724896358287,17.63104112,143.46,143.45,0.04498153]
[1724896360302,344.2326,143.52,143.45,0.04498153]
[1724896360497,10.72,143.5,143.45,0.04498153]
[1724896361097,3.4841,143.48,143.45,3.52948153]
[1724896361291,10.72,143.5,143.45,0.04498153]
[1724896361892,3.484,143.48,143.45,3.52948153]
[1724896364091,3.4843,143.47,143.45,0.04498153]
[1724896370796,3.484,143.48,143.45,3.52958153]
[1724896372202,5.0201,143.53,143.47,10.72]
[1724896372203,4.58,143.53,143.47,10.72]
[1724896372403,10.72,143.53,143.49,0.05183053]
[1724896372807,3.4831,143.52,143.49,0.05183053]
[1724896373400,339.0,143.55,143.5,10.72]
[1724896373611,339.0,143.55,143.49,15.35183053]
[1724896374300,3.4826,143.54,143.51,3.4831]
[1724896376203,342.4822,143.55,143.51,3.4831]
[1724896376508,3.4822,143.55,143.51,3.4831]
[1724896376706,3.482,143.56,143.52,3.4829]
[1724896377009,3.482,143.56,143.53,0.05305117]
[1724896378205,10.72,143.56,143.53,0.05305117]
[1724896378813,3.4823,143.55,143.53,0.05305117]
[1724896381008,3.4824,143.54,143.53,0.05305117]
[1724896385819,3.4819,143.56,143.53,3.53555117]
[1724896387114,3.4817,143.57,143.54,14.2023]
[1724896387614,3.482,143.56,143.53,3.53555117]
[1724896388317,3.55697327,143.57,143.53,0.05305117]
[1724896388518,10.72,143.58,143.53,0.05305117]
[1724896389020,14.24144882,143.58,143.53,0.05305117]
[1724896389225,14.24144882,143.58,143.53,3.53565117]
[1724896389422,14.24144882,143.58,143.53,0.05305117]
[1724896389719,10.72,143.56,143.53,0.05305117]
[1724896390022,14.23622463,143.56,143.53,0.05305117]
[1724896390314,3.4824,143.54,143.53,0.05305117]
[1724896392115,3.4832,143.51,143.47,10.72]
[1724896392423,3.4832,143.51,143.48,3.4837]
[1724896393125,3.53606189,143.51,143.48,3.53589683]
[1724896394214,3.46181457,143.51,143.48,3.53589683]
[1724896401326,0.05286189,143.51,143.48,0.05219683]
[1724896402027,0.05286189,143.51,143.48,10.77219683]
[1724896403231,3.53616189,143.51,143.48,14.25609683]
[1724896404230,0.05286189,143.51,143.49,3.4836]
[1724896405228,3.53606189,143.51,143.48,10.77219683]
[1724896406234,0.05286189,143.51,143.49,3.4836]
[1724896407231,0.05286189,143.51,143.5,3.4834]
[1724896412440,0.05286189,143.51,143.49,7.1038]
[1724896412837,0.05286189,143.51,143.5,3.4834]
[1724896413434,0.05286189,143.51,143.49,10.5874]
[1724896414436,0.05286189,143.51,143.5,3.4834]
[1724896421840,0.05286189,143.51,143.49,17.8238]
[1724896423245,0.05286189,143.51,143.5,3.4834]
[1724896425643,0.05286189,143.51,143.5,14.2034]
[1724896428742,4.56,143.58,143.5,10.72]
[1724896429043,10.72,143.59,143.52,10.72]
[1724896429242,10.72,143.57,143.51,10.72]
[1724896429752,10.72,143.57,143.53,0.04620579]
[1724896430541,3.4822,143.55,143.53,0.04620579]
[1724896432552,10.72,143.57,143.53,0.04620579]
[1724896432845,8.08284193,143.6,143.53,0.04620579]
[1724896432846,14.2024,143.54,143.53,0.04620579]
[1724896445258,3.4824,143.54,143.53,0.04620579]
[1724896445557,14.2024,143.54,143.53,0.04620579]
[1724896445961,3.4834,143.51,143.45,4.56]
[1724896446256,3.4834,143.51,143.46,10.72]
[1724896446457,3.4834,143.51,143.48,3.4837]
[1724896447058,3.52917092,143.51,143.48,3.52790242]
[1724896449057,0.04577092,143.51,143.48,0.04420242]
[1724896449250,0.04577092,143.51,143.48,1.35720242]
[1724896449454,0.04577092,143.51,143.48,2.66900242]
[1724896449960,0.04577092,143.51,143.5,3.4834]
[1724896451956,0.04577092,143.51,143.48,2.66900242]
[1724896452155,10.76577092,143.51,143.48,2.66900242]
[1724896452661,3.4834,143.5,143.48,2.66900242]
[1724896453062,10.76577092,143.51,143.48,2.66900242]
[1724896453262,14.24907092,143.51,143.48,6.15270242]
[1724896453659,10.76577092,143.51,143.48,2.66900242]
[1724896453856,0.04577092,143.51,143.48,2.66900242]
[1724896454361,0.04577092,143.51,143.49,3.4836]
[1724896455655,0.04577092,143.51,143.48,2.66900242]
[1724896457360,0.04577092,143.51,143.5,3.4834]
[1724896462071,0.04577092,143.51,143.48,2.66900242]
[1724896462072,0.04577092,143.51,143.49,3.4835]
[1724896463968,3.52907092,143.51,143.48,6.15280242]
[1724896464568,3.52907092,143.51,143.49,3.4836]
[1724896465069,0.04577092,143.51,143.49,3.4836]
[1724896466873,3.4824,143.55,143.5,10.72]
[1724896467174,3.4824,143.55,143.52,10.72]
[1724896467369,3.4824,143.55,143.52,14.2028]
[1724896467765,3.4824,143.55,143.52,14.2502089]
[1724896468378,10.72,143.58,143.52,3.5302089]
[1724896468581,10.72,143.54,143.52,0.0474089]
[1724896468882,343.56,143.59,143.52,0.0474089]
[1724896468883,14.2027,143.53,143.52,0.0474089]
[1724896469180,10.72,143.56,143.52,0.0474089]
[1724896469363,3.4823,143.55,143.52,0.0474089]
[1724896469873,3.482,143.56,143.52,0.0474089]
[1724896470773,3.4818,143.57,143.54,3.4822]
[1724896470973,3.4818,143.57,143.54,3.53240389]
[1724896473174,10.72,143.57,143.54,0.05020389]
[1724896474268,3.4821,143.56,143.54,0.05020389]
[1724896477482,3.4822,143.55,143.54,0.05020389]
[1724896479581,3.4834,143.51,143.49,2.5608]
[1724896479885,3.45991064,143.52,143.49,2.5608]
[1724896480088,10.72,143.51,143.45,4.56]
[1724896480288,10.72,143.5,143.44,4.56]
[1724896480485,10.72,143.5,143.45,3.4845]
[1724896480677,0.0450436,143.48,143.46,0.05129344]
[1724896481289,3.5289436,143.48,143.46,0.05129344]
[1724896481887,0.0450436,143.48,143.46,0.05129344]
[1724896482088,15.28,143.53,143.46,0.05129344]
[1724896482388,3.4835,143.5,143.47,3.484]
[1724896489690,14.2032,143.51,143.48,3.4839]
[1724896490188,3.4832,143.51,143.48,3.4839]
[1724896492489,3.4834,143.5,143.47,3.484]
[1724896493397,15.28,143.53,143.47,3.484]
[1724896493891,3.4835,143.5,143.47,3.484]
[1724896501707,3.4838,143.49,143.46,3.53559344]
[1724896503214,3.4839,143.48,143.46,0.05129344]
[1724896503505,10.72,143.49,143.46,0.05129344]
[1724896503712,10.72,143.51,143.46,0.05129344]
[1724896504104,3.4838,143.49,143.46,3.53549344]
[1724896506103,3.4839,143.48,143.46,0.05129344]
[1724896508415,339.0,143.53,143.46,10.77129344]
[1724896508615,339.0,143.53,143.46,12.06909344]
[1724896508818,339.0,143.53,143.48,10.72]
[1724896509019,342.4829,143.53,143.49,3.52745875]
[1724896509716,3.4829,143.52,143.49,3.52745875]
[1724896512707,339.0,143.53,143.49,10.76395875]
[1724896513314,339.0,143.53,143.52,3.4829]
[1724896513616,3.482,143.56,143.52,3.4829]
[1724896513812,3.482,143.56,143.53,0.04630894]
[1724896514214,10.72,143.55,143.53,0.04630894]
[1724896515115,14.2024,143.55,143.53,0.04630894]
[1724896515313,10.72,143.55,143.53,0.04630894]
[1724896516117,3.4824,143.54,143.53,0.04630894]
[1724896517021,3.4822,143.55,143.53,0.04630894]
[1724896517218,10.72,143.57,143.53,0.04630894]
[1724896517423,3.4818,143.57,143.54,3.4823]
[1724896520818,3.4818,143.57,143.55,3.4821]
[1724896521124,3.4816,143.58,143.53,0.04630894]
[1724896522220,3.4816,143.58,143.55,3.482]
[1724896522923,3.4817,143.57,143.55,3.482]
[1724896524121,3.4817,143.57,143.54,3.4823]
[1724896527328,3.482,143.56,143.54,3.4823]
[1724896529324,3.4818,143.57,143.54,3.4823]
[1724896529520,3.4818,143.57,143.55,3.4821]
[1724896534226,3.4818,143.57,143.54,3.4823]
[1724896540329,339.0,143.62,143.55,10.72]
[1724896540528,1.28030944,143.61,143.57,0.04501164]
[1724896540832,3.481,143.6,143.57,3.52661164]
[1724896541133,10.72,143.62,143.57,0.04501164]
[1724896542735,10.72,143.6,143.57,0.04501164]
[1724896543034,3.4814,143.59,143.57,0.04501164]
[1724896545922,14.27484444,143.63,143.57,3.52661164]
[1724896546126,1.28029544,143.62,143.57,3.52661164]
[1724896546835,3.4811,143.6,143.57,3.52661164]
[1724896551534,3.4811,143.6,143.58,3.4815]
[1724896552736,3.4806,143.62,143.59,3.4811]
[1724896552935,1.28027631,143.61,143.59,3.53018203]
[1724896554935,4.76097631,143.61,143.59,3.53018203]
[1724896555137,3.4807,143.61,143.59,0.04908203]
[1724896557635,3.4806,143.62,143.59,3.53018203]
[1724896557835,1.28014949,143.61,143.59,3.53018203]
[1724896559937,3.4806,143.62,143.59,3.53018203]
[1724896563043,339.0,143.68,143.61,10.72]
[1724896563234,10.72,143.67,143.63,0.04544876]
[1724896563746,3.48,143.64,143.63,0.04544876]
[1724896564443,3.4798,143.65,143.63,0.04544876]
[1724896567937,1.1807,143.73,143.63,0.04544876]
[1724896567938,10.72,143.79,143.64,58.14]
[1724896568145,1.27900428,143.78,143.72,10.72]
[1724896568337,1.27900428,143.78,143.7,0.05258548]
[1724896568338,3.477,143.77,143.74,10.76745846]
[1724896569241,0.7956,143.8,143.75,14.1971]
[1724896569443,15.26,143.82,143.75,10.72]
[1724896569444,10.72,143.82,143.75,10.72]
[1724896569636,10.72,143.82,143.77,0.04629972]
[1724896569637,1.27854514,143.81,143.77,0.04629972]
[1724896571049,3.4766,143.78,143.77,0.04629972]
[1724896578353,14.1966,143.78,143.77,0.04629972]
[1724896579055,15.47527565,143.78,143.77,0.04629972]
[1724896579361,3.4766,143.78,143.77,0.04629972]
[1724896582654,4.75518949,143.78,143.77,0.04629972]
[1724896583964,3.4766,143.78,143.77,0.04629972]
[1724896584267,4.75518917,143.78,143.77,0.04629972]
[1724896587259,15.47518917,143.78,143.77,0.04629972]
[1724896587461,11.99858917,143.78,143.69,2.5226]
[1724896587664,10.72,143.75,143.7,4.52]
[1724896587976,10.72,143.75,143.71,3.4781]
[1724896587977,1.27858917,143.74,143.71,3.4781]
[1724896588372,1.27869861,143.73,143.71,3.4781]
[1724896588573,0.05179985,143.74,143.71,3.52270962]
[1724896588765,1.33051074,143.74,143.71,3.52270962]
[1724896588966,1.33051074,143.74,143.72,10.72]
[1724896589264,0.05179985,143.74,143.72,10.72]
[1724896590471,0.05179985,143.74,143.72,14.1979]
[1724896595979,0.05179985,143.74,143.73,3.4778]
[1724896596181,0.05179985,143.74,143.73,14.1978]
[1724896605083,3.4769,143.77,143.74,3.4774]
[1724896606184,3.4769,143.77,143.74,3.52989768]
[1724896607990,10.72,143.79,143.74,0.05249768]
[1724896608586,3.4773,143.76,143.74,0.05249768]
[1724896609690,3.477,143.77,143.74,3.52999768]
[1724896609894,10.72,143.79,143.74,0.05249768]
[1724896610092,3.4773,143.75,143.74,0.05249768]
[1724896612000,10.72,143.79,143.74,3.52999768]
[1724896612296,10.72,143.79,143.74,0.05249768]
[1724896612988,3.4769,143.77,143.74,3.52999768]
[1724896613690,3.4772,143.76,143.74,0.05249768]
[1724896616199,3.4773,143.75,143.74,0.05249768]
[1724896617394,14.1973,143.75,143.74,0.05249768]
[1724896619897,15.47614435,143.75,143.74,0.05249768]
[1724896620391,3.4783,143.71,143.68,3.4789]
[1724896621292,3.52419682,143.71,143.68,3.52687371]
[1724896630500,3.52419682,143.71,143.69,10.72]
[1724896630701,0.04589682,143.71,143.68,10.76797371]
[1724896631411,3.52419682,143.71,143.69,3.4787]
[1724896632211,0.04589682,143.71,143.69,3.4787]
[1724896637213,0.04589682,143.71,143.7,3.4786]
[1724896637808,0.04589682,143.71,143.7,14.1986]
[1724896638210,0.04589682,143.71,143.7,3.4786]
[1724896643309,0.04589682,143.71,143.69,10.573]
[1724896643510,10.72,143.7,143.68,0.04797371]
[1724896643715,14.1988,143.69,143.68,0.04797371]
[1724896643912,14.1988,143.69,143.61,4.52]
[1724896643913,11.99919434,143.69,143.61,4.52]
[1724896644113,10.72,143.66,143.61,4.52]
[1724896644418,10.72,143.66,143.63,3.4802]
[1724896644911,10.72,143.66,143.63,3.52826744]
[1724896644912,10.76810658,143.66,143.63,3.52826744]
[1724896645515,0.04810658,143.66,143.63,3.52826744]
[1724896645809,3.52780658,143.66,143.63,14.24826744]
[1724896646016,3.52780658,143.66,143.63,3.52826744]
[1724896647620,0.04810658,143.66,143.64,3.48]
[1724896649122,3.52760658,143.66,143.63,3.52816744]
[1724896655930,0.04810658,143.66,143.64,3.48]
[1724896656120,0.04810658,143.66,143.64,14.2]
[1724896659729,3.52760658,143.66,143.64,3.48]
[1724896660027,3.52760658,143.66,143.63,3.52816744]
[1724896661228,0.04810658,143.66,143.54,10.72]
[1724896661425,4.52,143.65,143.56,2.545]
[1724896661626,10.72,143.59,143.55,1.3561]
[1724896662127,0.04949293,143.58,143.56,0.05111528]
[1724896662324,3.4817,143.57,143.56,0.05111528]
[1724896662627,0.04949293,143.58,143.56,0.05111528]
[1724896662931,3.53119293,143.58,143.56,0.05111528]
[1724896663330,0.04949293,143.58,143.56,0.05111528]
[1724896663526,3.4817,143.57,143.56,0.05111528]
[1724896664635,3.53099293,143.58,143.56,0.05111528]
[1724896670340,3.4817,143.57,143.56,0.05111528]
[1724896674050,3.53109293,143.58,143.56,0.05111528]
[1724896674953,3.53109293,143.58,143.56,3.53301528]
[1724896675456,0.04949293,143.58,143.56,3.53301528]
[1724896679145,4.52,143.63,143.57,10.72]
[1724896679357,10.72,143.64,143.59,10.72]
[1724896679852,3.4805,143.62,143.59,3.4811]
[1724896680055,343.52,143.65,143.57,11.9935]
[1724896680056,10.72,143.63,143.57,11.9935]
[1724896680257,3.52653782,143.61,143.59,0.04645391]
[1724896680658,3.481,143.6,143.59,0.04645391]
[1724896680952,14.201,143.6,143.59,0.04645391]
[1724896682155,3.481,143.6,143.59,0.04645391]
[1724896688063,14.201,143.6,143.59,0.04645391]
[1724896689262,3.481,143.6,143.59,0.04645391]
[1724896691258,14.201,143.6,143.59,0.04645391]
[1724896699965,14.201,143.6,143.52,1.2943]
[1724896699966,3.4821,143.56,143.52,1.2943]
[1724896700368,10.72,143.55,143.52,1.2943]
[1724896700865,3.4821,143.56,143.53,3.4825]
[1724896701065,14.25088765,143.56,143.53,3.53262356]
[1724896701467,3.4823,143.55,143.53,0.05012356]
[1724896706079,10.76878765,143.56,143.53,0.05012356]
[1724896706375,3.4824,143.54,143.53,0.05012356]
[1724896706972,3.4823,143.55,143.53,0.05012356]
[1724896709077,3.4824,143.54,143.53,0.05012356]
[1724896709376,10.76878765,143.56,143.53,0.05012356]
[1724896709575,3.4824,143.55,143.53,0.05012356]
[1724896709876,10.76878765,143.56,143.53,0.05012356]
[1724896710876,10.72,143.54,143.53,0.05012356]
[1724896711076,0.04878765,143.56,143.53,0.05012356]
[1724896711277,14.2024,143.54,143.53,0.05012356]
[1724896711574,10.72,143.54,143.46,1.3627]
[1724896711780,14.2036,143.5,143.47,3.484]
[1724896712380,3.4836,143.5,143.47,3.484]
[1724896712682,3.53585266,143.5,143.47,3.52858057]
[1724896713084,3.53585266,143.5,143.47,0.04458057]
[1724896713085,0.05225266,143.5,143.47,0.04458057]
[1724896713281,10.72,143.48,143.47,0.04458057]
[1724896713587,0.05225266,143.5,143.47,0.04458057]
[1724896713782,10.72,143.48,143.47,0.04458057]